bitfinex/quotes_SOLUSD_20250308
["timestamp","ask_amount","ask_price","bid_price","bid_amount"]
[1741402412492,7.1443,139.97,139.9,20.99066494]
[1741402412678,28.13496494,139.97,139.9,20.99066494]
[1741402413302,13.42814517,139.96,139.9,13.42814517]
[1741402414504,20.57324517,139.96,139.9,20.57604517]
[1741402415194,20.57324517,139.96,139.9,7.1479]
[1741402415801,20.57324517,139.96,139.89,13.42814517]
[1741402415983,20.57324517,139.96,139.89,20.57634517]
[1741402416595,13.42814517,139.93,139.88,0.033]
[1741402416799,13.42814517,139.92,139.88,0.033]
[1741402417278,13.42814517,139.93,139.88,0.033]
[1741402417483,13.42814517,139.94,139.88,7.1818]
[1741402418701,20.57424517,139.94,139.88,7.1818]
[1741402419306,20.57424517,139.94,139.88,20.60994517]
[1741402419480,20.57424517,139.94,139.88,0.033]
[1741402420502,20.57424517,139.94,139.88,13.46114517]
[1741402420685,20.57424517,139.94,139.88,20.61004517]
[1741402420891,20.57424517,139.94,139.88,7.1819]
[1741402421088,20.57424517,139.94,139.88,0.033]
[1741402421408,20.57424517,139.94,139.88,7.1818]
[1741402422586,20.57424517,139.94,139.88,0.033]
[1741402422587,13.42814517,139.93,139.88,0.033]
[1741402422783,7.1461,139.94,139.88,0.033]
[1741402422784,13.42814517,139.92,139.88,0.033]
[1741402423597,13.42814517,139.93,139.88,0.033]
[1741402425390,7.1469,139.92,139.88,0.033]
[1741402429614,7.1466,139.93,139.88,0.033]
[1741402429815,13.42814517,139.95,139.89,13.42814517]
[1741402429994,20.57244517,139.97,139.91,13.42814517]
[1741402430910,20.57244517,139.97,139.91,20.57514517]
[1741402433317,13.42814517,139.96,139.9,20.57604517]
[1741402433522,13.42814517,139.96,139.9,7.1479]
[1741402434926,13.42814517,139.96,139.9,7.1809]
[1741402435120,20.57334517,139.96,139.9,7.1809]
[1741402436110,20.57334517,139.96,139.9,20.60904517]
[1741402437317,3.59815372,140.03,139.98,20.64964886]
[1741402437524,0.03,140.04,140.02,13.42814517]
[1741402437725,11.18677384,140.06,140.03,18.64964886]
[1741402438019,11.18677384,140.06,140.04,8.1014]
[1741402438805,44.56334844,140.09,140.04,8.1014]
[1741402438806,11.18677384,140.09,140.04,19.94814517]
[1741402439211,11.18677384,140.09,140.04,27.45423355]
[1741402440730,65.52758199,140.11,140.04,27.45423355]
[1741402440731,0.03,140.11,140.04,27.45423355]
[1741402441923,20.96423355,140.11,140.04,27.45423355]
[1741402442914,20.93423355,140.1,140.04,20.93423355]
[1741402443211,20.96423355,140.11,140.04,20.93423355]
[1741402444823,0.03,140.11,140.04,20.93423355]
[1741402445134,20.93423355,140.1,140.04,20.93423355]
[1741402446417,20.93423355,140.09,140.03,20.93423355]
[1741402448350,20.93423355,140.1,140.04,20.93423355]
[1741402449537,28.07193355,140.1,140.04,20.93423355]
[1741402449724,20.93423355,140.1,140.04,20.93423355]
[1741402450639,28.07203355,140.1,140.04,20.93423355]
[1741402456051,7.1378,140.1,140.04,20.93423355]
[1741402457547,28.07203355,140.1,140.04,20.93423355]
[1741402458744,7.1378,140.1,140.04,20.93423355]
[1741402459257,20.53788128,140.1,140.04,13.40008128]
[1741402460734,13.40008128,140.09,140.03,13.43308128]
[1741402461134,13.40008128,140.08,140.03,0.033]
[1741402461439,13.40008128,140.08,140.03,13.43308128]
[1741402461637,13.40008128,140.08,140.03,0.033]
[1741402462026,7.1392,140.07,140.03,0.033]
[1741402463357,13.40008128,140.06,140.03,0.033]
[1741402464458,20.05698128,140.04,139.91,134.6]
[1741402464756,20.05698128,140.04,139.94,13.40008128]
[1741402464757,13.40008128,140.0,139.94,13.40008128]
[1741402464972,13.40008128,140.01,139.95,13.40008128]
[1741402465337,13.40008128,140.02,139.96,13.40008128]
[1741402466364,7.1423,140.01,139.96,13.40008128]
[1741402466659,7.1413,140.03,139.99,13.40008128]
[1741402466864,7.1413,140.03,139.98,13.40008128]
[1741402467044,20.54138128,140.03,139.97,13.40008128]
[1741402467235,13.40008128,140.02,139.96,154.35508128]
[1741402467548,20.54138128,140.03,139.97,13.40008128]
[1741402468243,7.1413,140.03,139.98,13.40008128]
[1741402468755,20.54138128,140.03,139.97,13.40008128]
[1741402469349,13.40008128,140.02,139.96,154.35508128]
[1741402469559,13.40008128,140.01,139.96,148.00008128]
[1741402469930,13.40008128,140.02,139.96,148.00008128]
[1741402471853,7.1423,140.01,139.96,148.00008128]
[1741402472048,7.1423,140.01,139.96,148.03308128]
[1741402475639,20.54238128,140.01,139.96,134.633]
[1741402476655,0.03,140.05,139.98,7.8913]
[1741402476963,13.43008128,140.05,139.98,148.00008128]
[1741402477165,13.40008128,140.04,139.98,148.00008128]
[1741402477666,13.43008128,140.05,139.98,148.00008128]
[1741402478866,13.43008128,140.05,139.98,155.14378128]
[1741402479366,13.40008128,140.04,139.98,148.00008128]
[1741402480267,13.40008128,140.04,139.98,155.14368128]
[1741402481250,13.43008128,140.05,139.99,13.40008128]
[1741402482049,15.05418128,140.04,139.98,134.6]
[1741402482251,13.40008128,140.02,139.98,134.6]
[1741402482473,13.40008128,140.02,139.97,141.1]
[1741402483869,13.40008128,140.03,139.97,161.64428128]
[1741402484551,0.03,140.05,140.02,13.40008128]
[1741402484768,0.03,140.05,140.04,13.40008128]
[1741402486575,0.03,140.05,140.04,173.79053014]
[1741402487489,0.03,140.05,140.04,181.3215854]
[1741402487694,0.03,140.11,140.05,134.57]
[1741402487978,0.03,140.11,140.08,20.93113654]
[1741402488148,0.03,140.11,140.09,20.93113654]
[1741402489963,0.03,140.11,140.08,134.57]
[1741402491960,0.03,140.11,140.06,20.93113654]
[1741402495276,0.03,140.11,140.06,155.50113654]
[1741402495659,0.03,140.11,140.07,20.93113654]
[1741402498282,0.03,140.11,140.08,20.93113654]
[1741402498483,0.03,140.11,140.09,20.93113654]
[1741402499580,0.03,140.11,140.08,28.06973654]
[1741402500695,0.03,140.11,140.09,20.93113654]
[1741402502065,0.03,140.11,140.1,7.1377]
[1741402502266,0.03,140.11,140.08,162.63963654]
[1741402502891,0.03,140.11,140.09,20.93113654]
[1741402503263,0.03,140.11,140.1,20.93113654]
[1741402504385,0.03,140.11,140.1,28.06883654]
[1741402506269,0.03,140.11,140.1,181.2884854]
[1741402506783,0.03,140.12,140.11,134.54]
[1741402506960,0.03,140.12,140.11,155.47113654]
[1741402507360,0.03,140.12,140.11,147.92197089]
[1741402508377,0.03,140.12,140.11,166.57161975]
[1741402508791,0.03,140.12,140.11,173.70881975]
[1741402512697,0.03,140.12,140.11,134.54]
[1741402514498,0.03,140.12,140.07,6.5]
[1741402514717,0.03,140.12,140.08,13.38197089]
[1741402515029,7.1667,140.12,140.07,154.42197089]
[1741402515394,7.1667,140.12,140.08,13.38197089]
[1741402516575,7.1667,140.12,140.09,13.38197089]
[1741402517703,7.1667,140.12,140.08,13.38197089]
[1741402520820,7.1667,140.12,140.08,13.41497089]
[1741402524813,7.1667,140.12,140.08,0.033]
[1741402525900,20.54867089,140.12,140.08,0.033]
[1741402527218,0.03,140.12,140.08,13.41497089]
[1741402528623,7.1668,140.12,140.08,13.41497089]
[1741402528920,7.1668,140.12,140.08,0.033]
[1741402529514,0.03,140.12,140.08,13.41497089]
[1741402532315,0.03,140.12,140.08,0.033]
[1741402532509,13.41197089,140.12,140.08,0.033]
[1741402532829,13.38197089,140.1,140.08,0.033]
[1741402534118,13.38197089,140.11,140.08,0.033]
[1741402534320,20.51917089,140.11,140.08,0.033]
[1741402534896,13.38197089,140.11,140.08,0.033]
[1741402539041,13.41197089,140.12,140.08,0.033]
[1741402539243,0.03,140.12,140.08,0.033]
[1741402539549,0.03,140.12,140.08,13.41497089]
[1741402540844,0.03,140.12,140.09,7.1382]
[1741402541707,0.03,140.12,140.09,155.06017089]
[1741402541912,0.03,140.12,140.1,13.38197089]
[1741402542937,0.03,140.12,140.11,7.1372]
[1741402543509,0.03,140.12,140.11,20.51917089]
[1741402543928,0.03,140.12,140.11,7.1372]
[1741402544321,0.03,140.12,140.1,7.1376]
[1741402544741,13.41197089,140.12,140.08,0.033]
[1741402545310,0.03,140.12,140.08,0.033]
[1741402545817,14.97377089,140.11,140.08,0.033]
[1741402546333,1.5918,140.11,140.08,0.033]
[1741402553666,0.03,140.12,140.08,0.033]
[1741402553958,0.03,140.12,140.08,13.41497089]
[1741402554158,0.03,140.12,140.09,13.38197089]
[1741402555658,0.03,140.12,140.09,20.51967089]
[1741402558144,0.03,140.12,140.11,13.38197089]
[1741402559730,0.03,140.12,140.11,20.51917089]
[1741402559931,0.03,140.12,140.1,141.6775]
[1741402560139,0.03,140.12,140.1,134.54]
[1741402560566,0.03,140.12,140.1,155.05957089]
[1741402563438,0.03,140.12,140.1,20.51957089]
[1741402564962,0.03,140.12,140.09,7.138]
[1741402565632,0.03,140.12,140.09,20.51997089]
[1741402567664,0.03,140.12,140.09,20.55297089]
[1741402570351,0.03,140.12,140.09,0.033]
[1741402572846,0.03,140.12,140.1,13.38197089]
[1741402573146,0.03,140.12,140.11,13.38197089]
[1741402574077,0.03,140.12,140.11,147.92197089]
[1741402574775,0.0001,140.12,140.11,173.70881975]
[1741402575087,0.0001,140.12,140.11,180.20881975]
[1741402575449,2.1062626,140.17,140.12,18.64964886]
[1741402575651,2.1062626,140.17,140.16,13.38197089]
[1741402575852,2.1062626,140.17,140.16,147.92197089]
[1741402577543,2.1062626,140.17,140.16,134.54]
[1741402580951,2.1362626,140.17,140.16,134.54]
[1741402581366,2.1362626,140.17,140.15,155.05697089]
[1741402581567,2.1362626,140.17,140.16,13.38197089]
[1741402581770,2.1362626,140.17,140.15,147.92197089]
[1741402582151,2.1362626,140.17,140.15,155.05707089]
[1741402582574,2.1362626,140.17,140.16,13.38197089]
[1741402583169,2.1362626,140.17,140.15,147.92197089]
[1741402583356,2.1362626,140.17,140.15,134.54]
[1741402583562,2.1362626,140.17,140.15,147.92197089]
[1741402583973,2.1362626,140.17,140.15,155.05707089]
[1741402584178,2.1362626,140.17,140.16,13.38197089]
[1741402585278,2.1362626,140.17,140.16,20.51667089]
[1741402587257,2.1362626,140.17,140.16,155.05667089]
[1741402588082,2.1362626,140.17,140.16,173.70631975]
[1741402591067,6.26e-05,140.17,140.16,180.18631975]
[1741402594185,6.26e-05,140.17,140.16,173.70631975]
[1741402594482,6.26e-05,140.17,140.16,134.54]
[1741402595098,6.26e-05,140.17,140.16,141.6747]
[1741402595284,6.26e-05,140.17,140.16,155.05667089]
[1741402595587,6.26e-05,140.17,140.16,147.92197089]
[1741402595889,6.26e-05,140.17,140.16,155.05667089]
[1741402596266,6.26e-05,140.17,140.16,173.70631975]
[1741402599287,6.26e-05,140.17,140.16,155.05667089]
[1741402600797,6.26e-05,140.17,140.16,147.92197089]
[1741402600984,6.26e-05,140.17,140.16,134.54]
[1741402601489,6.26e-05,140.17,140.16,141.6747]
[1741402601997,6.26e-05,140.17,140.16,155.05667089]
[1741402604199,6.26e-05,140.17,140.16,141.6747]
[1741402604791,6.26e-05,140.17,140.16,155.05667089]
[1741402605894,6.26e-05,140.17,140.16,155.08967089]
[1741402607697,6.26e-05,140.17,140.16,147.95497089]
[1741402607869,6.26e-05,140.17,140.16,0.033]
[1741402610890,13.38203349,140.17,140.16,0.033]
[1741402611091,14.95373349,140.17,140.12,0.033]
[1741402611273,13.38197089,140.14,140.12,0.033]
[1741402611481,13.38197089,140.13,140.12,0.033]
[1741402611679,20.51817089,140.13,140.12,0.033]
[1741402611879,22.08987089,140.13,140.12,0.033]
[1741402612313,6.26e-05,140.17,140.16,60.49394555]
[1741402612474,0.03,140.18,140.16,99.0055653]
[1741402613408,0.03,140.18,140.16,233.6055653]
[1741402613785,0.03,140.18,140.17,7.1341]
[1741402614277,0.0001,140.18,140.17,39.16571975]
[1741402614481,1.5717,140.25,140.18,18.64964886]
[1741402614706,1.5717,140.25,140.23,13.38197089]
[1741402615202,1.5717,140.25,140.22,19.86197089]
[1741402615385,1.5717,140.25,140.22,27.36353675]
[1741402615788,1.5717,140.25,140.23,7.1311]
[1741402616604,6.2322,140.27,140.23,28.01463675]
[1741402616910,1.5717,140.29,140.24,20.88353675]
[1741402617809,1.5717,140.29,140.25,7.1301]
[1741402618109,1.5717,140.29,140.25,28.01363675]
[1741402618285,1.5717,140.29,140.27,20.88353675]
[1741402618609,1.5717,140.29,140.27,27.36353675]
[1741402619308,1.5717,140.29,140.28,7.1285]
[1741402619894,1.5717,140.29,140.27,6.48]
[1741402623492,22.45523675,140.29,140.27,6.48]
[1741402623704,20.88353675,140.28,140.23,6.48]
[1741402625127,22.45523675,140.29,140.23,27.36353675]
[1741402626203,20.88353675,140.28,140.23,6.48]
[1741402626404,20.88353675,140.28,140.22,20.88353675]
[1741402626601,1.5717,140.29,140.19,233.9321]
[1741402626602,20.88353675,140.26,140.21,27.36353675]
[1741402626796,20.88353675,140.26,140.21,20.88353675]
[1741402626990,8.6999,140.29,140.21,155.48353675]
[1741402626991,20.88353675,140.27,140.21,155.48353675]
[1741402627302,20.88353675,140.28,140.22,20.88353675]
[1741402628713,0.03,140.33,140.27,41.7670735]
[1741402628903,0.03,140.33,140.31,20.88353675]
[1741402630618,0.03,140.33,140.29,7.1279]
[1741402630929,0.03,140.33,140.3,20.88353675]
[1741402631608,20.88353675,140.31,140.24,7.1306]
[1741402631812,20.88353675,140.29,140.23,155.48353675]
[1741402632029,1.5501,140.3,140.25,20.88353675]
[1741402633216,1.5501,140.3,140.25,33.40153379]
[1741402633903,8.6777,140.3,140.25,33.40153379]
[1741402634105,33.40153379,140.29,140.23,168.00153379]
[1741402634315,8.6777,140.3,140.22,33.40153379]
[1741402634316,33.40153379,140.28,140.22,33.40153379]
[1741402635511,40.53023379,140.28,140.22,33.40153379]
[1741402636620,40.53023379,140.28,140.21,33.40153379]
[1741402637115,33.40153379,140.26,140.2,168.00153379]
[1741402637714,33.40153379,140.25,140.2,134.6]
[1741402637900,33.40153379,140.26,140.2,33.40153379]
[1741402638617,0.03,140.33,140.27,18.64964886]
[1741402638823,0.03,140.33,140.29,33.40153379]
[1741402640706,0.03,140.33,140.28,33.40153379]
[1741402643021,0.03,140.33,140.29,33.40153379]
[1741402644325,0.03,140.33,140.28,168.00153379]
[1741402644513,33.43153379,140.33,140.28,134.6]
[1741402644827,0.03,140.33,140.28,134.6]
[1741402645023,0.03,140.33,140.29,22.56899727]
[1741402645223,0.03,140.33,140.32,52.05118265]
[1741402645404,0.03,140.33,140.32,193.33118265]
[1741402647231,0.03,140.33,140.32,200.45768265]
[1741402650421,33.40153379,140.41,140.33,18.64964886]
[1741402650625,33.40153379,140.41,140.36,7.1245]
[1741402651012,40.52353379,140.41,140.36,7.1245]
[1741402651413,33.40153379,140.39,140.34,7.1255]
[1741402651951,33.40153379,140.41,140.36,33.40153379]
[1741402652743,33.40153379,140.41,140.36,40.52593379]
[1741402652945,33.40153379,140.41,140.36,33.40153379]
[1741402653242,40.52313379,140.42,140.36,33.40153379]
[1741402653438,40.52313379,140.42,140.33,186.65118265]
[1741402653439,33.40153379,140.39,140.33,186.65118265]
[1741402653746,33.40153379,140.4,140.34,33.40153379]
[1741402654340,33.40153379,140.41,140.35,33.40153379]
[1741402654518,0.03,140.4,140.35,33.40153379]
[1741402654839,33.43153379,140.4,140.34,33.40153379]
[1741402655154,40.55433379,140.4,140.34,33.40153379]
[1741402655341,28.00147481,140.4,140.34,20.84867481]
[1741402656645,7.1528,140.4,140.35,20.84867481]
[1741402657019,0.03,140.4,140.36,20.84867481]
[1741402657219,0.03,140.4,140.36,155.44867481]
[1741402657646,0.03,140.4,140.37,20.84867481]
[1741402657819,0.03,140.4,140.36,155.44867481]
[1741402658243,0.03,140.4,140.37,39.49832367]
[1741402658618,0.03,140.4,140.37,18.64964886]
[1741402659257,0.03,140.4,140.36,155.44867481]
[1741402661127,20.87867481,140.4,140.36,134.6]
[1741402661457,20.84867481,140.39,140.36,134.6]
[1741402661622,0.03,140.4,140.36,155.44867481]
[1741402661823,0.03,140.4,140.39,39.49832367]
[1741402662027,0.03,140.4,140.39,174.09832367]
[1741402662743,0.03,140.4,140.39,153.24964886]
[1741402663129,0.03,140.4,140.39,134.6]
[1741402667446,0.03,140.4,140.36,153.24964886]
[1741402667643,0.03,140.4,140.36,134.6]
[1741402668148,0.03,140.4,140.37,46.62232367]
[1741402668345,0.03,140.4,140.39,39.49832367]
[1741402668538,0.03,140.4,140.39,174.09832367]
[1741402668951,0.03,140.4,140.39,153.24964886]
[1741402670253,0.03,140.4,140.39,160.37264886]
[1741402670935,0.03,140.4,140.39,134.6]
[1741402673352,0.03,140.4,140.36,134.6]
[1741402673560,0.03,140.4,140.36,155.44867481]
[1741402673957,0.03,140.4,140.37,39.49832367]
[1741402675164,0.03,140.4,140.37,20.84867481]
[1741402675352,0.03,140.4,140.36,155.44867481]
[1741402675558,20.87867481,140.4,140.34,134.6]
[1741402676064,20.84867481,140.39,140.34,134.6]
[1741402676268,22.36237481,140.39,140.34,134.6]
[1741402676682,1.5137,140.39,140.34,134.6]
[1741402677643,7.1235,140.38,140.34,134.6]
[1741402677970,1.5137,140.39,140.35,20.84867481]
[1741402678155,1.5137,140.39,140.36,20.84867481]
[1741402678461,1.5137,140.39,140.34,141.7255]
[1741402678666,1.5137,140.39,140.35,20.84867481]
[1741402678841,1.5137,140.39,140.34,162.57417481]
[1741402679365,8.6367,140.39,140.34,134.6]
[1741402679552,29.48537481,140.39,140.34,134.6]
[1741402679864,20.84867481,140.37,140.33,0.033]
[1741402680047,29.48537481,140.39,140.33,0.033]
[1741402682757,29.48537481,140.39,140.33,20.88167481]
[1741402683358,29.48537481,140.39,140.33,0.033]
[1741402683875,29.48537481,140.39,140.33,20.88167481]
[1741402684058,29.48537481,140.39,140.33,0.033]
[1741402685288,29.48537481,140.39,140.33,134.633]
[1741402685581,20.84867481,140.37,140.33,134.633]
[1741402686458,20.84867481,140.36,140.33,134.633]
[1741402686665,20.84867481,140.34,140.33,0.033]
[1741402687162,22.51307481,140.34,140.33,0.033]
[1741402687871,29.63857481,140.34,140.33,0.033]
[1741402688383,8.7899,140.34,140.33,0.033]
[1741402688975,1.6644,140.34,140.33,0.033]
[1741402689183,22.51307481,140.34,140.33,0.033]
[1741402690977,29.63857481,140.34,140.33,0.033]
[1741402696867,35.94997481,140.34,140.33,0.033]
[1741402698097,54.59962367,140.34,140.33,0.0001]
[1741402698300,18.64964886,140.32,140.22,7.1316]
[1741402698480,20.84867481,140.27,140.22,7.1316]
[1741402699788,20.84867481,140.27,140.21,169.03977481]
[1741402700414,20.84867481,140.28,140.22,20.84867481]
[1741402701618,7.1291,140.27,140.22,27.98027481]
[1741402701984,7.1291,140.27,140.22,7.1316]
[1741402702692,7.1291,140.27,140.21,34.43987481]
[1741402703591,7.1291,140.27,140.22,0.033]
[1741402703974,7.1291,140.27,140.22,20.88167481]
[1741402704380,27.97777481,140.27,140.22,0.033]
[1741402704579,20.84867481,140.26,140.22,0.033]
[1741402706107,7.1301,140.25,140.22,0.033]
[1741402706793,27.97837481,140.26,140.22,0.033]
[1741402707188,20.84867481,140.27,140.22,0.033]
[1741402707397,6.0719,140.28,140.22,20.88167481]
[1741402707901,6.0719,140.28,140.23,7.1311]
[1741402709907,6.0719,140.28,140.23,20.84867481]
[1741402710608,26.92057481,140.28,140.22,20.88167481]
[1741402711002,34.04917481,140.28,140.22,20.88167481]
[1741402711205,20.84867481,140.27,140.22,0.033]
[1741402711405,20.84867481,140.26,140.22,0.033]
[1741402711786,20.84867481,140.25,140.22,0.033]
[1741402711986,27.97927481,140.24,140.22,0.033]
[1741402713009,20.84867481,140.24,140.22,0.033]
[1741402713814,22.51297481,140.23,140.22,0.033]
[1741402713986,29.64407481,140.23,140.22,0.033]
[1741402716621,42.45637481,140.23,140.22,0.033]
[1741402719495,1.6643,140.23,140.22,0.033]
[1741402720227,1.6643,140.27,140.22,20.88167481]
[1741402720424,20.84867481,140.29,140.23,20.84867481]
[1741402721094,20.84867481,140.28,140.22,7.1646]
[1741402721296,20.84867481,140.28,140.22,28.01327481]
[1741402721494,20.84867481,140.28,140.22,20.88167481]
[1741402721899,20.84867481,140.27,140.22,0.033]
[1741402722809,20.84867481,140.23,140.22,0.033]
[1741402723122,27.97977481,140.23,140.22,0.033]
[1741402723495,29.52587481,140.23,140.22,0.033]
[1741402726226,47.35367481,140.23,140.18,0.033]
[1741402726434,20.84867481,140.19,140.18,0.033]
[1741402726808,27.98177481,140.19,140.18,0.033]
[1741402730913,27.98177481,140.19,140.18,0.0001]
[1741402731113,46.63142367,140.19,140.18,0.0001]
[1741402731850,27.98177481,140.19,140.18,0.0001]
[1741402738847,7.1331,140.19,140.18,0.0001]
[1741402739055,20.84867481,140.2,140.18,0.0001]
[1741402739745,20.84867481,140.19,140.18,0.0001]
[1741402740650,20.84867481,140.21,140.18,0.0001]
[1741402741221,27.98127481,140.21,140.18,0.0001]
[1741402744247,20.84867481,140.2,140.18,0.0001]
[1741402744433,27.98127481,140.21,140.18,0.0001]
[1741402744860,20.84867481,140.2,140.18,0.0001]
[1741402746057,27.98177481,140.2,140.18,0.0001]
[1741402746234,20.84867481,140.19,140.18,0.0001]
[1741402747938,27.98177481,140.19,140.18,0.0001]
[1741402751843,46.63142367,140.19,140.18,0.0001]
[1741402757263,39.17149556,140.19,140.18,0.0001]
[1741402758456,27.0018467,140.19,140.18,0.0001]
[1741402763662,27.0318467,140.19,140.18,0.0001]
[1741402764967,20.5518467,140.19,140.18,0.0001]
[1741402765147,0.03,140.19,140.18,0.0001]
[1741402765957,7.1631,140.19,140.18,0.0001]
[1741402773283,0.03,140.19,140.18,0.0001]
[1741402779372,13.4187467,140.19,140.18,0.0001]
[1741402780178,32.06839556,140.19,140.18,0.0001]
[1741402780970,82.06839556,140.19,140.18,0.0001]
[1741402781369,82.06839556,140.19,140.12,0.033]
[1741402781370,18.64964886,140.18,140.12,0.033]
[1741402781574,13.3887467,140.13,140.12,0.033]
[1741402782806,20.5249467,140.13,140.12,0.033]
[1741402782982,7.1362,140.13,140.12,0.033]
[1741402786290,13.3887467,140.15,140.12,0.033]
[1741402786496,7.1357,140.14,140.12,0.033]
[1741402788497,31.2261467,140.16,140.12,0.033]
[1741402788702,7.1352,140.15,140.12,0.033]
[1741402797201,1.5254,140.14,140.12,0.033]
[1741402797384,13.3887467,140.13,140.09,0.033]
[1741402797591,13.3887467,140.1,140.09,0.033]
[1741402799403,20.5264467,140.1,140.09,0.033]
[1741402800078,7.1377,140.1,140.09,0.033]
[1741402801182,20.5264467,140.1,140.09,0.033]
[1741402802014,7.1377,140.1,140.09,0.033]
[1741402803385,20.5264467,140.1,140.09,0.033]
[1741402803601,20.5264467,140.1,140.09,0.0001]
[1741402804192,20.5264467,140.1,140.08,0.0001]
[1741402804401,13.3887467,140.09,140.08,0.0001]
[1741402805906,20.5269467,140.09,140.08,0.0001]
[1741402807710,7.1382,140.09,140.08,0.0001]
[1741402810209,20.5269467,140.09,140.08,0.0001]
[1741402810718,7.1382,140.09,140.08,0.0001]
[1741402812110,20.5269467,140.09,140.08,0.0001]
[1741402813912,7.1382,140.09,140.08,0.0001]
[1741402816310,7.1372,140.11,140.08,0.0001]
[1741402816513,7.1372,140.11,140.08,13.3888467]
[1741402816899,7.1372,140.11,140.08,0.0001]
[1741402817302,7.1668,140.12,140.08,0.0001]
[1741402818616,0.03,140.12,140.08,13.3888467]
[1741402818802,0.03,140.12,140.08,0.0001]
[1741402819115,13.4187467,140.12,140.08,0.0001]
[1741402821009,7.1372,140.11,140.08,0.0001]
[1741402828822,13.3887467,140.09,140.08,0.0001]
[1741402831722,20.5269467,140.09,140.08,0.0001]
[1741402834903,57.05219556,140.09,140.05,0.0001]
[1741402835098,13.3887467,140.06,140.05,0.0001]
[1741402835309,19.8687467,140.06,140.05,0.0001]
[1741402837317,27.0084467,140.06,140.05,0.0001]
[1741402847568,45.65809556,140.06,140.05,0.0001]
[1741402851566,97.28759556,140.06,140.05,0.0001]
[1741402851770,18.64964886,140.05,140.03,0.0001]
[1741402852067,32.03839556,140.04,140.03,0.0001]
[1741402853772,39.17919556,140.04,140.03,0.0001]
[1741402856450,20.5295467,140.04,140.03,0.0001]
[1741402867161,13.3887467,140.04,140.03,0.0001]
[1741402867979,32.03839556,140.04,140.03,0.0001]
[1741402869162,39.17919556,140.04,140.03,0.0001]
[1741402870185,39.20919556,140.04,140.03,0.0001]
[1741402878685,39.20919556,140.04,139.97,0.033]
[1741402878686,18.64964886,140.03,139.97,0.033]
[1741402878903,13.3887467,139.98,139.97,0.033]
[1741402879108,13.3887467,139.99,139.97,0.033]
[1741402879720,13.3887467,139.98,139.97,0.033]
[1741402880720,20.5325467,139.98,139.97,0.033]
[1741402883294,20.5325467,139.98,139.97,0.0001]
[1741402887017,57.04179556,139.98,139.94,0.033]
[1741402887206,13.3887467,139.95,139.94,0.033]
[1741402888016,20.5341467,139.95,139.94,0.033]
[1741402915239,7.1454,139.95,139.94,0.033]
[1741402915537,20.5341467,139.95,139.94,0.033]
[1741402915723,7.1433,139.99,139.94,0.033]
[1741402915928,13.3887467,139.97,139.94,0.033]
[1741402916126,13.4187467,139.97,139.94,0.033]
[1741402917643,7.1745,139.97,139.94,0.033]
[1741402919032,20.5632467,139.97,139.94,0.033]
[1741402922935,13.3887467,139.95,139.94,0.033]
[1741402925419,7.1454,139.95,139.94,0.033]
[1741402926444,13.3887467,139.95,139.94,0.033]
[1741402927425,13.3887467,139.96,139.94,0.033]
[1741402928549,7.1454,139.95,139.94,0.033]
[1741402928756,20.5341467,139.95,139.94,0.033]
[1741402949962,20.17686348,139.95,139.94,0.033]
[1741402951863,38.82651234,139.95,139.93,0.033]
[1741402952166,32.03839556,139.94,139.93,0.033]
[1741402952869,82.03839556,139.94,139.93,0.0001]
[1741402953044,135.59338236,139.94,139.93,0.0001]
[1741402953359,143.59818236,139.94,139.93,0.0001]
[1741402954268,150.74408236,139.94,139.93,0.0001]
[1741402954449,166.79570596,139.94,139.93,0.0001]
[1741402959060,170.34315644,139.94,139.93,0.0001]
[1741402959582,154.29153284,139.94,139.93,0.0001]
[1741402959945,172.15623284,139.94,139.9,0.033]
[1741402960164,20.5361467,139.91,139.9,0.033]
[1741402960469,27.0161467,139.91,139.9,0.033]
[1741402962367,20.5361467,139.91,139.9,0.033]
[1741402962556,53.5549868,139.93,139.9,0.033]
[1741402962557,7.1464,139.93,139.9,0.033]